bitfinex-derivatives/quotes_SOLF0:USTF0_20250706
["timestamp","ask_amount","ask_price","bid_price","bid_amount"]
[1751837455835,12.08430177,153.6,153.5,12.21715085]
[1751837456036,12.08430177,153.59,153.51,12.21715085]
[1751837456233,12.08430177,153.59,153.52,12.21715085]
[1751837456535,12.08430177,153.56,153.45,22.52996666]
[1751837456733,6.5149,153.46,153.44,22.52996666]
[1751837456932,12.08430177,153.51,153.43,22.52996666]
[1751837457127,2.1556,153.61,153.42,22.52996666]
[1751837457434,12.08430177,153.51,153.42,22.53875584]
[1751837457632,2.2418,153.5,153.43,7.87854536]
[1751837457836,6.5153,153.45,153.44,7.87854536]
[1751837458132,2.2418,153.5,153.41,22.53875584]
[1751837458331,2.2418,153.5,153.42,22.53875584]
[1751837459031,561.13381107,153.54,153.43,30.42213895]
[1751837459237,12.08430177,153.5,153.44,7.88338311]
[1751837459435,561.13381107,153.54,153.45,7.88338311]
[1751837459641,12.08430177,153.52,153.46,7.88338311]
[1751837459936,12.08430177,153.53,153.47,7.88338311]
[1751837460133,12.08430177,153.53,153.48,7.88338311]
[1751837460331,12.08430177,153.53,153.49,7.88338311]
[1751837460529,2.2244,153.62,153.41,12.08430177]
[1751837460735,12.08430177,153.55,153.41,12.08430177]
[1751837460933,12.08430177,153.55,153.44,12.08430177]
[1751837461134,562.8,153.61,153.42,34.70007252]
[1751837461335,12.08430177,153.58,153.45,12.08430177]
[1751837461737,562.8,153.6,153.45,12.08430177]
[1751837461931,12.08430177,153.57,153.45,12.08430177]
[1751837462132,6.5146,153.47,153.42,12.08430177]
[1751837462337,12.08430177,153.51,153.41,28.18367252]
[1751837462734,12.08430177,153.5,153.4,28.18367252]
[1751837462931,12.08430177,153.5,153.41,28.18367252]
[1751837463131,2.3728,153.49,153.41,28.18367252]
[1751837463438,12.08430177,153.48,153.36,12.08430177]
[1751837463640,2.3728,153.49,153.39,51.5414433]
[1751837463841,2.3728,153.49,153.42,12.08430177]
[1751837464138,12.08430177,153.54,153.42,39.45714153]
[1751837464339,12.08430177,153.54,153.43,12.08430177]
[1751837464529,12.08430177,153.54,153.42,39.45714153]
[1751837464932,12.08430177,153.54,153.41,12.08430177]
[1751837464933,12.08430177,153.54,153.43,39.45714153]
[1751837465137,350.18194624,153.59,153.43,39.45714153]
[1751837465337,350.18194624,153.59,153.41,12.08430177]
[1751837465540,6.5155,153.45,153.41,12.08430177]
[1751837465941,350.18194624,153.59,153.41,12.08430177]
[1751837466130,12.08430177,153.54,153.4,39.45714153]
[1751837466335,12.08430177,153.54,153.41,7.15805547]
[1751837466533,325.64071935,153.59,153.4,12.08430177]
[1751837466739,12.08430177,153.57,153.43,12.08430177]
[1751837467042,12.08430177,153.57,153.44,7.16783424]
[1751837467241,12.08430177,153.57,153.45,7.16660488]
[1751837467438,12.08430177,153.57,153.46,7.16660488]
[1751837467737,562.82,153.7,153.47,7.16660488]
[1751837467936,2.2082,153.67,153.48,7.16660488]
[1751837468242,2.2082,153.67,153.53,12.08430177]
[1751837468545,23.0960732,153.59,153.54,7.18455611]
[1751837468841,29.61099756,153.55,153.45,562.82]
[1751837469039,12.20120831,153.54,153.46,7.04758087]
[1751837469237,12.20120831,153.53,153.45,12.08430177]
[1751837469440,35.30110587,153.52,153.43,12.08430177]
[1751837469739,35.30110587,153.52,153.42,2.1848]
[1751837469740,13.26049756,153.57,153.51,12.08430177]
[1751837469941,6.5064,153.66,153.58,6.5095]
[1751837470241,6.5064,153.66,153.49,562.7]
[1751837470242,12.08430177,153.64,153.51,12.08430177]
[1751837470432,6.5107,153.56,153.49,12.08430177]
[1751837470637,28.87009151,153.64,153.49,12.08430177]
[1751837470838,12.08430177,153.62,153.49,12.08430177]
[1751837471042,6.9911,153.63,153.49,18.59790177]
[1751837471240,6.9911,153.63,153.49,12.08430177]
[1751837471440,47.94549328,153.63,153.5,12.08430177]
[1751837471644,12.08430177,153.61,153.46,2.372]
[1751837471842,12.08430177,153.61,153.47,12.08430177]
[1751837472044,40.95439328,153.61,153.42,528.4583075]
[1751837472237,35.86119151,153.63,153.49,12.08430177]
[1751837472441,28.87009151,153.61,153.49,12.08430177]
[1751837472643,35.86119151,153.63,153.5,6.45950692]
[1751837472942,35.86119151,153.63,153.51,6.45950692]
[1751837473134,28.87009151,153.62,153.52,18.54380869]
[1751837473343,28.87009151,153.63,153.58,12.08430177]
[1751837473641,28.87009151,153.64,153.59,12.08430177]
[1751837473842,35.37769151,153.64,153.59,12.08430177]
[1751837474042,28.87009151,153.63,153.45,5.86890719]
[1751837474242,28.87009151,153.63,153.42,538.46251999]
[1751837474544,28.87009151,153.59,153.56,12.08430177]
[1751837474848,28.87009151,153.57,153.55,19.25012621]
[1751837475046,28.87009151,153.57,153.55,25.76082621]
[1751837475250,28.87009151,153.58,153.55,25.76082621]
[1751837475543,40.40593165,153.65,153.42,538.46251999]
[1751837475748,40.40593165,153.65,153.57,19.25012621]
[1751837475944,40.40593165,153.64,153.57,19.25012621]
[1751837476138,40.40593165,153.64,153.42,538.46251999]
[1751837476338,3.67012899,153.51,153.43,349.52]
[1751837476642,19.25012621,153.61,153.47,19.25012621]
[1751837476848,40.40593165,153.56,153.47,19.25012621]
[1751837477241,40.40593165,153.52,153.47,19.25012621]
[1751837477437,40.40593165,153.52,153.5,19.25012621]
[1751837477643,40.40593165,153.51,153.5,19.25012621]
[1751837478043,2.3538,153.61,153.5,19.25012621]
[1751837478246,6.5106,153.56,153.5,25.76302621]
[1751837478950,60.07655951,153.61,153.5,19.25012621]
[1751837479147,60.07655951,153.61,153.53,19.25012621]
[1751837479642,6.5096,153.59,153.53,19.25012621]
[1751837479838,2.3538,153.61,153.53,19.25012621]
[1751837480237,2.3538,153.61,153.43,547.42695936]
[1751837480445,2.3538,153.61,153.5,19.25012621]
[1751837480646,2.3538,153.61,153.43,547.42695936]
[1751837480837,8.8623,153.61,153.51,19.25012621]
[1751837481045,2.3538,153.61,153.51,19.25012621]
[1751837481349,66.58535951,153.61,153.53,6.5115]
[1751837481553,66.58535951,153.61,153.52,19.25012621]
[1751837481841,12.20744558,153.6,153.43,509.09246226]
[1751837482046,12.20744558,153.59,153.51,19.25012621]
[1751837482648,8.8626,153.61,153.54,6.5113]
[1751837482951,2.3538,153.61,153.54,6.5113]
[1751837483248,6.509,153.6,153.54,6.5114]
[1751837483638,6.509,153.6,153.52,19.25012621]
[1751837483639,2.3538,153.61,153.52,19.25012621]
[1751837483844,8.8626,153.61,153.54,6.511]
[1751837484044,8.8626,153.61,153.52,19.25012621]
[1751837484250,8.8626,153.61,153.54,6.5113]
[1751837484546,2.3538,153.61,153.51,19.25012621]
[1751837484945,2.3538,153.61,153.52,19.25012621]
[1751837485348,8.8626,153.61,153.54,6.5111]
[1751837485647,2.3538,153.61,153.51,19.25012621]
[1751837486150,8.8626,153.61,153.55,6.5107]
[1751837486348,8.8626,153.61,153.51,19.25012621]
[1751837487048,6.5088,153.61,153.54,6.5111]
[1751837487242,6.5089,153.6,153.51,19.25012621]
[1751837487444,8.34889495,153.64,153.44,2.1835]
[1751837487743,8.34889495,153.63,153.5,19.25012621]
[1751837487948,20.17299782,153.62,153.5,19.25012621]
[1751837488150,11.82410287,153.6,153.47,19.25012621]
[1751837488346,8.34889495,153.59,153.47,19.25012621]
[1751837488548,8.34889495,153.59,153.44,2.1835]
[1751837488549,8.34889495,153.58,153.5,19.25012621]
[1751837488752,19.25012621,153.64,153.5,19.25012621]
[1751837488951,562.54,153.65,153.5,19.25012621]
[1751837489147,19.25012621,153.63,153.5,19.25012621]
[1751837489348,19.25012621,153.64,153.52,6.5122]
[1751837489543,19.25012621,153.64,153.5,19.25012621]
[1751837489745,562.54,153.65,153.53,8.66360679]
[1751837489944,562.54,153.65,153.55,8.66360679]
[1751837490149,562.54,153.65,153.56,17.08499616]
[1751837490345,562.54,153.65,153.57,8.42138937]
[1751837490548,562.54,153.65,153.58,8.42138937]
[1751837490745,562.54,153.65,153.59,8.42138937]
[1751837490945,562.54,153.65,153.6,8.42138937]
[1751837491145,562.54,153.65,153.61,9.46538001]
[1751837491345,562.54,153.65,153.62,9.46538001]
[1751837491541,562.54,153.65,153.56,8.66360679]
[1751837491740,562.54,153.65,153.52,11.55147572]
[1751837491741,562.54,153.65,153.53,6.5123]
[1751837492342,562.54,153.65,153.51,27.913733]
[1751837492343,562.54,153.65,153.52,6.5127]
[1751837492862,10.08094478,153.64,153.51,19.25012621]
[1751837493045,10.08094478,153.63,153.51,19.25012621]
[1751837493245,10.08094478,153.62,153.51,19.25012621]
[1751837493445,10.08094478,153.61,153.51,19.25012621]
[1751837493646,16.59064478,153.6,153.54,6.512]
[1751837493849,562.54,153.65,153.54,6.512]
[1751837493850,9.23762122,153.59,153.54,6.512]
[1751837494046,4.80724689,153.58,153.51,19.25012621]
[1751837494247,4.80724689,153.57,153.51,19.25012621]
[1751837494446,4.43037607,153.64,153.51,19.25012621]
[1751837494447,4.80724689,153.56,153.51,19.25012621]
[1751837494652,4.80724689,153.55,153.52,6.5125]
[1751837494853,4.80724689,153.54,153.52,6.5125]
[1751837495054,4.80724689,153.53,153.48,6.5144]
[1751837495248,19.25012621,153.62,153.46,19.25012621]
[1751837495650,6.511,153.57,153.5,6.5134]
[1751837496155,11.05671922,153.56,153.5,6.5134]
[1751837496452,4.10159881,153.64,153.55,19.25012621]
[1751837496654,14.13976002,153.73,153.41,13.0344]
[1751837496655,19.25012621,153.71,153.47,2.2437]
[1751837496854,12.11748309,153.68,153.56,12.11748309]
[1751837497055,2.1621,153.67,153.56,18.62848309]
[1751837497258,6.5084,153.63,153.56,18.62848309]
[1751837498153,4.09041119,153.7,153.59,12.11748309]
[1751837498356,12.11748309,153.75,153.48,21.8691]
[1751837498649,12.11748309,153.74,153.65,40.38086267]
[1751837498854,449.51774687,153.76,153.69,17.43704783]
[1751837499054,12.11748309,153.75,153.7,17.43704783]
[1751837499256,6.505,153.71,153.7,17.43704783]
[1751837499857,12.11748309,153.75,153.64,6.5074]
[1751837499858,6.5052,153.7,153.69,17.43704783]
[1751837500157,6.5052,153.7,153.68,17.43704783]
[1751837500350,6.5052,153.7,153.69,17.43704783]
[1751837501058,12.11748309,153.75,153.62,47.68752947]
[1751837501259,12.11748309,153.75,153.62,29.06174638]
[1751837501457,6.5063,153.68,153.62,29.06174638]
[1751837501756,12.11748309,153.75,153.61,12.11748309]
[1751837501960,12.11748309,153.72,153.61,12.11748309]
[1751837502259,12.11748309,153.72,153.61,18.62628309]
[1751837502754,12.11748309,153.72,153.61,12.11748309]
[1751837502955,6.5067,153.67,153.58,29.06174638]
[1751837503157,12.11748309,153.73,153.61,12.11748309]
[1751837503451,2.153,153.72,153.62,12.11133031]
[1751837503649,6.5067,153.67,153.63,12.11133031]
[1751837503854,4.4571,153.72,153.64,12.11133031]
[1751837504055,4.4571,153.72,153.65,12.11133031]
[1751837504257,6.5067,153.67,153.66,12.11133031]
[1751837504459,4.4571,153.72,153.61,29.06174638]
[1751837504662,6.508,153.64,153.62,3.31187561]
[1751837504860,6.508,153.64,153.59,41.17922947]
[1751837505056,6.508,153.64,153.6,3.31310633]
[1751837505255,6.508,153.64,153.57,20.79298309]
[1751837505457,6.508,153.64,153.58,3.31371081]
[1751837505762,6.508,153.64,153.59,3.31371081]
[1751837505963,6.508,153.64,153.6,3.31371081]
[1751837506264,6.508,153.64,153.61,3.31380651]
[1751837506460,6.508,153.64,153.58,6.5099]
[1751837506660,6.508,153.64,153.59,3.32063087]
[1751837506863,12.11748309,153.7,153.6,3.32063087]
[1751837507162,12.11748309,153.7,153.61,3.32063087]
[1751837507366,12.11748309,153.7,153.58,6.5099]
[1751837507563,12.11748309,153.7,153.59,3.32245159]
[1751837507763,12.11748309,153.68,153.6,3.32245159]
[1751837507958,6.5084,153.63,153.6,3.32245159]
[1751837508164,6.5084,153.63,153.57,6.5106]
[1751837508464,4.43364209,153.62,153.58,3.3230457]
[1751837508664,4.43364209,153.61,153.5,2.1592]
[1751837508868,4.43364209,153.6,153.55,12.11748309]
[1751837509060,12.11748309,153.67,153.56,9.83936149]
[1751837509061,4.4343595,153.59,153.56,9.83936149]
[1751837509363,4.4343595,153.58,153.57,3.32856149]
[1751837511064,574.37748309,153.68,153.57,3.32856149]
[1751837511265,574.37748309,153.68,153.58,3.32856149]
[1751837511465,574.37748309,153.68,153.59,3.32856149]
[1751837511665,77.57972053,154.69,153.62,12.11748309]
[1751837511666,562.28,153.75,153.62,12.11748309]
[1751837511866,6.5063,153.68,153.63,3.32856149]
[1751837512066,6.5063,153.68,153.64,3.32856149]
[1751837512265,6.5057,153.69,153.63,6.508]
[1751837512561,12.11748309,153.73,153.64,3.34154163]
[1751837512761,12.11748309,153.73,153.65,3.34154163]
[1751837512964,12.11748309,153.71,153.66,3.34154163]
[1751837513265,562.28,153.75,153.67,3.34154163]
[1751837513465,16.57458309,153.72,153.68,3.34154163]
[1751837513656,16.57458309,153.72,153.6,12.11748309]
[1751837513862,16.57458309,153.72,153.61,3.33940547]
[1751837514060,4.4571,153.72,153.62,3.33940547]
[1751837514366,4.4571,153.72,153.63,3.33940547]
[1751837514569,4.4571,153.72,153.64,3.33940547]
[1751837514762,4.4571,153.72,153.65,3.33940547]
[1751837514962,4.4571,153.72,153.56,12.11748309]
[1751837514963,4.4571,153.72,153.66,3.33940547]
[1751837515157,4.4571,153.72,153.67,3.33940547]
[1751837515369,4.4571,153.72,153.62,12.11748309]
[1751837515562,4.4571,153.72,153.63,3.33987687]
[1751837515766,4.4571,153.72,153.64,3.33987687]
[1751837515966,4.4571,153.72,153.65,3.33987687]
[1751837516167,4.4571,153.72,153.66,3.33987687]
[1751837516368,4.4571,153.72,153.67,3.33987687]
[1751837516557,4.4571,153.72,153.62,12.11748309]
[1751837516558,6.5052,153.7,153.68,10.56417551]
[1751837516762,6.5052,153.7,153.69,10.56417551]
[1751837517566,6.5057,153.69,153.62,6.5082]
[1751837517868,6.5057,153.69,153.63,3.34143431]
[1751837518059,6.5057,153.69,153.64,3.34143121]
[1751837518262,4.4571,153.72,153.65,3.34143121]
[1751837518462,4.4571,153.72,153.56,23.46876269]
[1751837518662,4.4571,153.72,153.61,6.509]
[1751837518868,6.5068,153.67,153.6,12.11748309]
[1751837519069,12.11748309,153.71,153.6,18.62678309]
[1751837519270,12.11748309,153.71,153.6,12.11748309]
[1751837519466,4.4571,153.72,153.6,12.11748309]
[1751837519666,16.57458309,153.72,153.61,6.5087]
[1751837519869,16.57458309,153.72,153.61,18.62618309]
[1751837520168,6.5065,153.67,153.6,6.5093]
[1751837520464,4.4571,153.72,153.56,12.11748309]
[1751837520674,6.5063,153.68,153.62,12.11748309]
[1751837520862,4.4571,153.72,153.62,12.11748309]
[1751837521068,6.5056,153.69,153.62,12.11748309]
[1751837521264,4.4571,153.72,153.63,6.5078]
[1751837521464,4.4571,153.72,153.62,12.11748309]
[1751837521661,6.5056,153.69,153.62,18.62588309]
[1751837522067,6.5056,153.69,153.62,12.11748309]
[1751837522566,6.5056,153.69,153.62,18.62598309]
[1751837523065,6.5056,153.69,153.62,6.5085]
[1751837523270,6.5056,153.69,153.63,6.508]
[1751837523571,4.4571,153.72,153.61,12.11748309]
[1751837524173,6.5055,153.7,153.63,6.508]
[1751837524671,6.5056,153.69,153.63,6.508]
[1751837525074,6.5063,153.68,153.61,6.5086]
[1751837525273,16.57458309,153.72,153.58,12.11748309]
[1751837525770,4.4571,153.72,153.61,12.11748309]
[1751837526169,6.5061,153.68,153.62,6.5083]
[1751837526371,4.4571,153.72,153.53,562.16]
[1751837526571,12.11748309,153.71,153.59,12.11748309]
[1751837527076,12.11748309,153.71,153.53,562.16]
[1751837527377,6.5072,153.66,153.6,12.11748309]
[1751837527771,6.5074,153.65,153.6,12.11748309]
[1751837527976,6.5074,153.65,153.59,6.5095]
[1751837528275,16.57458309,153.72,153.6,12.11748309]
[1751837528477,9.06934788,153.7,153.6,12.11748309]
[1751837528678,8.76256919,153.71,153.53,562.16]
[1751837528679,17.83191707,153.69,153.58,12.11748309]
[1751837528873,6.5076,153.65,153.59,13.62555167]
[1751837529077,8.76256919,153.64,153.58,7.11585167]
[1751837529280,8.76256919,153.64,153.53,562.16]
[1751837529281,8.76256919,153.63,153.53,562.16]
[1751837529477,8.76256919,153.62,153.57,7.11585167]
[1751837529777,8.76256919,153.61,153.57,7.11585167]
[1751837530074,8.76256919,153.6,153.57,7.11585167]
[1751837530277,16.18519955,153.67,153.57,7.11585167]
[1751837530477,6.5086,153.62,153.56,6.511]
[1751837530679,8.76885091,153.61,153.57,7.11585167]
[1751837530879,8.76885091,153.6,153.57,7.11585167]
[1751837531073,8.76885091,153.59,153.56,7.11585167]
[1751837531276,8.7722573,153.58,153.5,2.1592]
[1751837531479,9.06934788,153.65,153.56,7.11585167]
[1751837531668,10.91467746,153.64,153.56,7.11585167]
[1751837531876,8.77227746,153.63,153.55,7.11585167]
[1751837532179,8.77227746,153.62,153.55,7.11585167]
[1751837532377,6.5094,153.6,153.54,7.11585167]
[1751837532580,8.77227746,153.59,153.54,7.11585167]
[1751837532781,8.77227746,153.58,153.54,7.11585167]
[1751837533080,8.77227746,153.57,153.54,7.11585167]
[1751837533282,7.11585167,153.63,153.54,7.11585167]
[1751837533479,8.7251135,153.62,153.54,7.11585167]
[1751837533683,8.7251135,153.61,153.54,7.11585167]
[1751837533872,8.7251135,153.6,153.54,7.11585167]
[1751837534071,15.2350135,153.59,153.54,7.11585167]
[1751837534278,8.7251135,153.58,153.54,7.11585167]
[1751837534477,8.7251135,153.57,153.54,13.62775167]
[1751837534672,6.5097,153.6,153.54,13.62775167]
[1751837534881,8.72803183,153.59,153.54,13.62775167]
[1751837535079,6.5097,153.6,153.54,13.62775167]
[1751837535080,8.72803183,153.58,153.54,13.62775167]
[1751837535280,8.72803183,153.57,153.53,6.5122]
[1751837535482,6.5099,153.59,153.53,13.62805167]
[1751837535684,8.72817563,153.58,153.53,7.11585167]
[1751837535882,8.72817563,153.57,153.53,7.11585167]
[1751837536083,18.32759955,153.64,153.53,7.11585167]
[1751837536284,8.728149,153.63,153.53,7.11585167]
[1751837536486,15.84400067,153.62,153.48,2.1655]
[1751837536682,6.5099,153.59,153.53,7.11585167]
[1751837536980,8.728149,153.58,153.53,7.11585167]
[1751837537184,8.728149,153.57,153.53,13.62785167]
[1751837537481,8.728149,153.56,153.53,7.11585167]
[1751837537676,6.5099,153.59,153.53,7.11585167]
[1751837537887,8.7298891,153.58,153.48,2.1655]
[1751837538090,8.7298891,153.57,153.5,7.11585167]
[1751837538285,8.7298891,153.56,153.51,7.11585167]
[1751837538490,8.7298891,153.55,153.51,7.11585167]
[1751837538686,7.11585167,153.6,153.48,2.1655]
[1751837538884,8.73037284,153.59,153.51,7.11585167]
[1751837539094,6.5112,153.56,153.51,6.5129]
[1751837539387,8.73091288,153.55,153.48,2.1655]
[1751837539588,2.3328,153.62,153.44,7.11585167]
[1751837539589,15.84676455,153.54,153.44,7.11585167]
[1751837539784,8.73091288,153.53,153.44,7.11585167]
[1751837540085,8.73091288,153.52,153.44,7.11585167]
[1751837540288,8.72843045,153.51,153.44,7.11585167]
[1751837540489,8.72843045,153.5,153.44,7.11585167]
[1751837540686,8.72843045,153.49,153.43,7.11585167]
[1751837540886,2.3235,153.53,153.43,7.11585167]
[1751837541090,15.84838959,153.52,153.41,2.1655]
[1751837541284,8.73253792,153.51,153.42,7.11585167]
[1751837541485,8.73253792,153.5,153.42,7.11585167]
[1751837541691,8.73253792,153.49,153.42,7.11585167]
[1751837541893,9.32305167,153.52,153.42,7.11585167]
[1751837542094,8.71067279,153.51,153.42,7.11585167]
[1751837542286,8.71067279,153.5,153.42,7.11585167]
[1751837542484,8.71067279,153.49,153.42,7.11585167]
[1751837542685,6.5144,153.49,153.43,6.5166]
[1751837542992,9.32305167,153.52,153.43,6.5166]
[1751837543193,6.5148,153.48,153.42,13.63275167]
[1751837543388,7.11585167,153.5,153.37,2.1658]
[1751837543586,8.6006845,153.49,153.39,7.11585167]
[1751837543782,8.6006845,153.48,153.39,7.11585167]
[1751837543987,8.6006845,153.47,153.39,7.11585167]
[1751837544293,8.6006845,153.46,153.41,6.5173]
[1751837544494,2.2458,153.49,153.41,7.11585167]
[1751837544789,2.2458,153.49,153.43,7.11585167]
[1751837544988,2.2458,153.49,153.44,6.5159]
[1751837545382,2.2458,153.49,153.37,2.1658]
[1751837545583,2.2458,153.49,153.23,13.0498]
[1751837545787,8.58579218,153.48,153.38,7.11585167]
[1751837545983,15.10099218,153.47,153.4,6.5178]
[1751837546188,8.58579218,153.46,153.38,7.11585167]
[1751837546385,2.2458,153.49,153.42,7.11585167]
[1751837546592,8.57800987,153.48,153.42,7.11585167]
[1751837546790,8.57800987,153.47,153.42,7.11585167]
[1751837546989,85.9,153.51,153.46,13.63085167]
[1751837547187,8.57661035,153.5,153.46,13.63085167]
[1751837547388,8.57661035,153.49,153.46,13.63085167]
[1751837547588,85.9,153.51,153.46,13.63085167]
[1751837547589,8.57661035,153.48,153.46,13.63085167]
[1751837547785,2.2072,153.52,153.47,6.5148]
[1751837547989,8.57003505,153.51,153.34,88.0658]
[1751837548191,8.7201,153.52,153.34,88.0658]
[1751837548389,2.2072,153.52,153.45,7.11585167]
[1751837548888,6.5138,153.5,153.44,13.63195167]
[1751837549086,2.2072,153.52,153.44,7.11585167]
[1751837549598,2.2824,153.56,153.5,7.11585167]
[1751837549797,8.53030711,153.55,153.5,7.11585167]
[1751837549996,6.5125,153.53,153.48,7.11585167]
[1751837550294,8.53030711,153.52,153.48,7.11585167]
[1751837550491,9.39825167,153.56,153.46,7.11585167]
[1751837550695,8.52802681,153.55,153.45,6.5157]
[1751837550892,15.64387848,153.54,153.41,85.9]
[1751837551090,2.2824,153.56,153.44,7.11585167]
[1751837551091,6.5132,153.51,153.44,7.11585167]
[1751837551991,6.5132,153.51,153.44,13.63195167]
[1751837552194,7.11585167,153.51,153.34,4.4489]
[1751837552392,2.2894,153.5,153.41,7.11585167]
[1751837552595,2.2894,153.5,153.41,13.63325167]
[1751837552889,6.5148,153.48,153.41,13.63325167]
[1751837553693,7.11585167,153.49,153.39,7.11585167]
[1751837553890,7.11585167,153.47,153.35,84.26]
[1751837554091,7.11585167,153.46,153.36,7.11585167]
[1751837554300,6.5161,153.45,153.36,7.11585167]
[1751837554496,6.5161,153.45,153.38,7.11585167]
[1751837555098,6.5163,153.44,153.38,6.5184]
[1751837556799,6.5166,153.43,153.38,6.5184]
[1751837557191,6.5166,153.43,153.37,13.63485167]
[1751837557390,7.11585167,153.46,153.35,84.26]
[1751837557590,8.55253363,153.45,153.36,7.11585167]
[1751837557796,8.55253363,153.44,153.36,7.11585167]
[1751837558094,7.11585167,153.46,153.36,7.11585167]
[1751837558300,8.49009668,153.45,153.36,7.11585167]
[1751837558598,89.71585167,153.46,153.34,7.11585167]
[1751837558599,6.5179,153.4,153.34,7.11585167]
[1751837558799,82.6,153.46,153.34,7.11585167]
[1751837559098,6.5173,153.42,153.36,7.11585167]
[1751837559302,89.71585167,153.46,153.36,7.11585167]
[1751837559500,89.71585167,153.46,153.36,13.63535167]
[1751837560098,89.71585167,153.46,153.37,6.519]
[1751837560303,89.71585167,153.46,153.36,7.11585167]
[1751837560492,7.11585167,153.42,153.23,294.4702]
[1751837560697,15.06311668,153.45,153.3,7.11585167]
[1751837560698,7.11585167,153.4,153.3,7.11585167]
[1751837561099,6.519,153.38,153.31,7.11585167]
[1751837561299,2.2576,153.41,153.33,7.11585167]
[1751837561709,2.2576,153.41,153.35,6.5199]
[1751837561906,2.2576,153.41,153.33,7.11585167]
[1751837562500,6.5183,153.39,153.32,7.11585167]
[1751837562910,6.5183,153.39,153.34,6.5204]
[1751837563203,9.37345167,153.41,153.3,7.11585167]
[1751837563407,9.37345167,153.41,153.31,6.5216]
[1751837563602,6.5199,153.36,153.3,7.11585167]
[1751837563796,9.37345167,153.41,153.3,7.11585167]
[1751837564005,6.5191,153.38,153.32,7.11585167]
[1751837564613,2.2576,153.41,153.28,3.8286]
[1751837564901,369.53585167,153.44,153.35,7.11585167]
[1751837565102,6.5181,153.4,153.35,13.63575167]
[1751837565304,369.53585167,153.44,153.35,7.11585167]
[1751837565605,369.53585167,153.44,153.32,6.5211]
[1751837565606,7.11585167,153.4,153.32,6.5211]
[1751837565803,7.11585167,153.4,153.3,7.11585167]
[1751837566007,7.11585167,153.41,153.3,7.11585167]
[1751837566307,7.11585167,153.41,153.31,7.11585167]
[1751837566608,7.89672363,153.43,153.31,7.11585167]
[1751837566905,7.11585167,153.43,153.33,7.11585167]
[1751837567101,7.11585167,153.43,153.32,7.11585167]
[1751837567305,6.5188,153.38,153.33,6.5206]
[1751837567504,7.11585167,153.41,153.25,86.2735]
[1751837567706,6.5189,153.38,153.33,6.5205]
[1751837568008,7.11585167,153.41,153.25,86.2735]
[1751837568208,7.11585167,153.41,153.3,7.11585167]
[1751837568504,7.8823882,153.43,153.31,7.11585167]
[1751837568704,7.11585167,153.42,153.31,7.11585167]
[1751837569507,6.5188,153.38,153.31,7.11585167]
[1751837570007,6.5183,153.39,153.31,7.11585167]
[1751837570209,7.11585167,153.42,153.31,7.11585167]
[1751837570410,6.5184,153.39,153.33,7.11585167]
[1751837570710,362.42,153.44,153.33,7.11585167]
[1751837570913,369.53585167,153.44,153.33,7.11585167]
[1751837571209,6.518,153.4,153.33,7.11585167]
[1751837571409,362.42,153.44,153.33,7.11585167]
[1751837571605,362.42,153.44,153.35,7.11585167]
[1751837572000,362.42,153.44,153.27,7.11585167]
[1751837572001,369.53585167,153.44,153.25,86.2735]
[1751837572201,369.53585167,153.44,153.35,6.5196]
[1751837572511,369.53585167,153.44,153.34,7.11585167]
[1751837572710,6.5177,153.41,153.36,6.5192]
[1751837573110,369.53585167,153.44,153.34,7.11585167]
[1751837573911,362.42,153.44,153.34,7.11585167]
[1751837574110,369.53585167,153.44,153.34,7.11585167]
[1751837574311,369.53585167,153.44,153.25,86.2735]
[1751837574514,6.5175,153.41,153.35,6.5197]
[1751837574707,369.53585167,153.44,153.35,6.5197]
[1751837574903,4.75925967,153.42,153.34,4.75925967]
[1751837575207,362.42,153.44,153.33,6.5207]
[1751837575208,6.519,153.38,153.33,6.5207]
[1751837575409,4.75925967,153.38,153.29,4.75925967]
[1751837576208,6.5197,153.36,153.32,6.5212]
[1751837576513,6.5197,153.36,153.29,4.75925967]
[1751837576714,6.5197,153.36,153.31,6.5217]
[1751837577511,6.5197,153.36,153.32,6.5212]
[1751837577712,6.5193,153.37,153.32,6.5212]
[1751837578110,4.75925967,153.4,153.31,4.75925967]
[1751837578517,4.75925967,153.4,153.32,6.5212]
[1751837578908,4.75925967,153.4,153.31,4.75925967]
[1751837579116,6.5199,153.36,153.31,11.28065967]
[1751837579715,6.5199,153.36,153.31,6.5214]
[1751837579915,6.5192,153.37,153.32,6.5209]
[1751837580118,2.2494,153.39,153.32,6.5209]
[1751837580321,6.5198,153.36,153.31,6.5216]
[1751837580616,4.75925967,153.38,153.31,6.5216]